bitfinex-derivatives/quotes_ETHF0:USTF0_20241105
["timestamp","ask_amount","ask_price","bid_price","bid_amount"]
[1730785591254,1.48392242,2429.4,2429.3,1.2140878]
[1730785592351,1.91142242,2429.4,2429.3,1.2140878]
[1730785594858,0.4275,2429.4,2429.3,1.2140878]
[1730785595253,0.4275,2429.4,2429.3,0.85816]
[1730785595460,1.48392242,2429.5,2429.3,1.24813749]
[1730785595659,1.48392242,2429.5,2429.4,4.42147265]
[1730785596057,1.48392242,2429.5,2429.4,4.87987265]
[1730785596259,1.48392242,2429.5,2429.4,4.65734058]
[1730785597652,1.48392242,2429.5,2429.4,4.07805]
[1730785597965,1.48392242,2429.5,2429.4,4.65731644]
[1730785598564,1.48392242,2429.5,2429.4,4.07805]
[1730785598865,1.48392242,2429.5,2429.4,4.65729151]
[1730785599361,0.096,2429.9,2429.8,0.41178]
[1730785599558,0.4308,2430.1,2430.0,0.41174]
[1730785599763,0.4308,2430.1,2430.0,3.61954]
[1730785603866,0.4308,2430.1,2430.0,0.41174]
[1730785604167,0.4308,2430.1,2429.9,0.9155]
[1730785604168,0.84253,2430.1,2429.9,3.61955]
[1730785604465,1.90882242,2430.0,2429.9,3.61955]
[1730785605767,1.90882242,2430.0,2429.9,0.41175]
[1730785607273,2.32057242,2430.0,2429.8,0.41177]
[1730785607480,1.90882242,2430.0,2429.8,0.41177]
[1730785608170,2.32057242,2430.0,2429.8,0.41177]
[1730785608371,1.90882242,2430.0,2429.9,0.41176]
[1730785608572,2.32056242,2430.0,2429.9,0.41176]
[1730785608966,1.90882242,2430.0,2429.9,0.41176]
[1730785609161,2.32056242,2430.0,2429.9,0.41176]
[1730785609372,2.76256242,2430.0,2429.9,0.41176]
[1730785610669,2.35082242,2430.0,2429.9,0.41176]
[1730785612768,2.76256242,2430.0,2429.9,0.41176]
[1730785613270,2.35082242,2430.0,2429.9,0.41176]
[1730785616575,2.35082242,2430.0,2429.8,0.41177]
[1730785616576,2.76258242,2430.0,2429.8,0.41177]
[1730785617470,2.76258242,2430.0,2429.9,0.41176]
[1730785617471,2.35082242,2430.0,2429.9,0.41176]
[1730785617975,0.8669,2430.0,2429.9,0.41176]
[1730785619273,0.4308,2430.1,2430.0,0.41174]
[1730785619472,0.4308,2430.1,2430.0,3.61954]
[1730785620688,0.8861,2430.3,2430.2,0.41171]
[1730785620875,1.3559,2430.3,2430.2,0.41171]
[1730785621880,1.7676,2430.3,2430.1,1.32602]
[1730785622177,1.48392242,2430.2,2430.1,1.32602]
[1730785622783,1.48392242,2430.2,2430.0,3.2078]
[1730785623083,1.48392242,2430.1,2430.0,3.2078]
[1730785623677,1.89565242,2430.1,2430.0,3.2078]
[1730785624176,1.48392242,2430.1,2430.0,3.2078]
[1730785625175,1.89565242,2430.1,2430.0,3.2078]
[1730785625683,1.89565242,2430.1,2429.9,0.41176]
[1730785625885,0.4374,2430.0,2429.9,0.41176]
[1730785627080,0.8854,2430.0,2429.9,0.41176]
[1730785628076,1.3487,2430.0,2429.9,0.41176]
[1730785628883,1.76045,2430.0,2429.9,0.41176]
[1730785629084,1.3487,2430.0,2429.9,0.41176]
[1730785630281,0.8854,2430.0,2429.9,0.41176]
[1730785631681,0.4374,2430.0,2429.9,1.30876]
[1730785633187,0.4374,2430.0,2429.9,1.88809741]
[1730785633981,1.48392242,2430.2,2430.1,0.41173]
[1730785634279,1.94882242,2430.2,2430.1,0.41173]
[1730785635084,1.48392242,2430.2,2430.1,0.41173]
[1730785636682,42.28392242,2430.2,2430.1,0.41173]
[1730785638090,40.8,2430.2,2430.1,0.41173]
[1730785638292,2.80000242,2430.4,2430.2,0.41171]
[1730785638792,43.60000242,2430.4,2430.2,0.41171]
[1730785638994,0.4117,2430.3,2430.1,0.41172]
[1730785639384,0.4627,2430.2,2430.1,0.41172]
[1730785640197,0.4627,2430.2,2430.1,0.99158162]
[1730785640492,1.94662242,2430.2,2430.1,0.41172]
[1730785640894,1.94662242,2430.2,2430.1,0.99158052]
[1730785642086,1.94662242,2430.2,2430.1,0.99169083]
[1730785642396,1.94662242,2430.2,2430.1,1.21456092]
[1730785642893,1.94662242,2430.2,2430.1,0.99169083]
[1730785643293,1.94662242,2430.2,2430.1,1.21461123]
[1730785644893,2.35833242,2430.2,2430.1,0.80289123]
[1730785645492,2.35833242,2430.2,2430.1,0.5805945]
[1730785645795,2.35833242,2430.2,2430.1,0.8036774]
[1730785645998,2.35833242,2430.2,2430.1,1.2154074]
[1730785645999,1.94662242,2430.2,2430.1,1.2154074]
[1730785649302,1.94662242,2430.2,2430.1,0.99232287]
[1730785649499,1.94662242,2430.2,2430.1,1.79600825]
[1730785652901,1.94662242,2430.2,2430.1,0.99232287]
[1730785653102,1.94662242,2430.2,2430.1,1.79601064]
[1730785653497,1.94662242,2430.2,2430.1,1.57292609]
[1730785653803,0.4614,2430.4,2430.1,1.38427705]
[1730785654003,0.4614,2430.4,2430.3,3.2078]
[1730785654201,0.4614,2430.4,2430.3,4.42317418]
[1730785655199,0.4614,2430.4,2430.3,4.01148418]
[1730785655398,0.4614,2430.4,2430.3,4.42317418]
[1730785656709,0.4614,2430.4,2430.3,4.42624139]
[1730785656902,0.4614,2430.4,2430.3,1.21844139]
[1730785657103,0.4614,2430.4,2430.3,4.01455139]
[1730785660300,0.4614,2430.4,2430.3,0.22299557]
[1730785660508,6.47140242,2430.4,2430.3,3.79158304]
[1730785660710,6.92110242,2430.4,2430.3,3.79158304]
[1730785661105,6.92110242,2430.4,2430.3,3.2078]
[1730785661403,1.32278,2430.4,2430.3,3.79169421]
[1730785661599,1.32278,2430.4,2430.3,4.42640335]
[1730785661600,0.4614,2430.4,2430.3,4.42640335]
[1730785662205,0.4614,2430.4,2430.3,4.85980335]
[1730785664512,1.48392242,2430.5,2430.4,0.41168]
[1730785664709,0.428,2430.6,2430.4,0.5807703]
[1730785664915,0.428,2430.6,2430.5,1.4284699]
[1730785665620,5.52814242,2430.8,2430.5,1.4284699]
[1730785665916,5.99484242,2430.8,2430.6,0.4695]
[1730785666412,0.41163,2430.7,2430.6,0.4695]
[1730785666907,5.99484242,2430.8,2430.6,0.4695]
[1730785667112,0.41163,2430.7,2430.6,0.4695]
[1730785667415,5.58322242,2430.8,2430.6,0.4695]
[1730785667416,5.99484242,2430.8,2430.6,0.88114]
[1730785668017,0.41163,2430.7,2430.6,0.4695]
[1730785668217,5.58322242,2430.8,2430.6,0.4695]
[1730785668414,5.99483242,2430.8,2430.6,0.88114]
[1730785668611,2.78703242,2430.8,2430.6,0.88114]
[1730785669317,2.37542242,2430.8,2430.6,0.4695]
[1730785669616,2.78704242,2430.8,2430.6,0.4695]
[1730785669814,2.78704242,2430.8,2430.6,0.88114]
[1730785670011,2.78704242,2430.8,2430.6,0.4695]
[1730785670314,2.78704242,2430.8,2430.6,0.88114]
[1730785670515,2.78703242,2430.8,2430.6,0.88114]
[1730785670817,2.37542242,2430.8,2430.6,0.88114]
[1730785671114,2.78703242,2430.8,2430.6,0.88114]
[1730785671512,1.48392242,2430.7,2430.6,0.4695]
[1730785671712,1.89555242,2430.7,2430.6,0.4695]
[1730785671915,1.48392242,2430.7,2430.6,0.4695]
[1730785672109,1.48392242,2430.7,2430.6,0.88114]
[1730785673616,2.37542242,2430.8,2430.6,0.4695]
[1730785673814,2.78705242,2430.8,2430.6,0.4695]
[1730785674016,2.78705242,2430.8,2430.6,0.88114]
[1730785674717,1.95062242,2430.8,2430.6,0.4695]
[1730785675118,1.95062242,2430.8,2430.7,0.41163]
[1730785675419,1.48392242,2430.9,2430.8,0.41161]
[1730785675623,1.48392242,2430.9,2430.8,0.84561]
[1730785677017,1.3141,2431.0,2430.9,0.41159]
[1730785677018,0.4452,2431.0,2430.9,0.41159]
[1730785678513,0.424,2431.3,2431.0,0.41158]
[1730785678724,0.83553,2431.3,2431.1,0.41156]
[1730785679112,0.424,2431.3,2431.1,3.61936]
[1730785679520,0.424,2431.3,2431.1,3.2078]
[1730785679816,0.424,2431.3,2431.2,0.41154]
[1730785680321,0.424,2431.3,2431.1,3.61935]
[1730785680925,1.48392242,2431.2,2431.1,3.2078]
[1730785681129,1.89546242,2431.2,2431.1,3.2078]
[1730785681820,6.00906242,2431.2,2431.1,3.2078]
[1730785684823,0.4116,2430.9,2430.7,0.096]
[1730785685122,0.4116,2430.9,2430.6,4.05474]
[1730785685123,0.4427,2430.8,2430.6,4.05474]
[1730785685524,0.4427,2430.8,2430.6,3.6431]
[1730785685727,0.4427,2430.8,2430.6,4.05473]
[1730785686517,0.4427,2430.8,2430.7,0.41163]
[1730785686723,0.4427,2430.8,2430.6,4.05473]
[1730785687420,0.4427,2430.8,2430.6,0.84693]
[1730785687630,0.4427,2430.8,2430.7,0.41163]
[1730785690736,0.85431,2430.8,2430.6,4.49803]
[1730785692334,0.4427,2430.8,2430.7,0.41163]
[1730785692630,0.85431,2430.8,2430.6,4.49803]
[1730785693425,0.4427,2430.8,2430.6,4.49803]
[1730785693735,0.4427,2430.8,2430.6,1.29023]
[1730785693931,0.85432,2430.8,2430.6,1.29023]
[1730785694528,0.4427,2430.8,2430.6,1.29023]
[1730785694735,0.85431,2430.8,2430.6,1.29023]
[1730785695229,1.89555242,2430.7,2430.6,0.4433]
[1730785695427,1.48392242,2430.7,2430.4,3.2078]
[1730785695630,0.41166,2430.5,2430.4,3.2078]
[1730785695825,0.41169,2430.3,2430.2,3.2078]
[1730785696026,2.40402242,2430.4,2429.9,4.24594476]
[1730785696231,1.89564242,2430.2,2429.9,4.14994476]
[1730785696423,1.48392242,2430.2,2429.9,4.14994476]
[1730785696627,0.86474,2430.1,2429.9,1.3273]
[1730785696832,0.86474,2430.1,2429.9,1.73906]
[1730785697031,0.453,2430.1,2429.9,1.3273]
[1730785697235,0.41176,2429.9,2429.8,3.2078]
[1730785697438,1.48392242,2429.9,2429.6,0.41181]
[1730785697636,1.33188,2429.8,2429.6,0.41181]
[1730785698239,1.33188,2429.8,2429.5,6.30582075]
[1730785698827,0.9201,2429.8,2429.5,6.30582075]
[1730785699038,0.9201,2429.8,2429.5,5.89400075]
[1730785699239,1.33189,2429.8,2429.5,6.30583075]
[1730785699833,0.9201,2429.8,2429.5,3.2078]
[1730785700432,0.4118,2429.7,2429.5,3.2078]
[1730785700737,1.48392242,2429.6,2429.5,3.2078]
[1730785701035,1.48392242,2429.6,2429.5,3.61963]
[1730785701434,0.4118,2429.7,2429.5,3.61962]
[1730785701637,2.40402242,2429.8,2429.6,0.41181]
[1730785702440,43.61580242,2429.8,2429.5,0.41182]
[1730785703343,2.81580242,2429.8,2429.5,0.41182]
[1730785703741,2.40402242,2429.8,2429.4,4.1115]
[1730785703937,3.2078,2430.2,2429.4,5.59542242]
[1730785704141,1.48392242,2430.0,2429.8,0.41177]
[1730785704338,1.48392242,2430.0,2429.5,1.57992242]
[1730785704638,41.2412,2430.1,2429.9,0.41175]
[1730785704940,1.3715,2430.3,2430.0,0.9039]
[1730785705138,1.48392242,2430.2,2430.0,1.31564]
[1730785705532,1.48392242,2430.2,2430.0,0.9039]
[1730785705732,1.89563242,2430.2,2430.0,0.9039]
[1730785705939,1.48392242,2430.2,2430.0,1.31564]
[1730785706338,1.48392242,2430.2,2430.1,0.41173]
[1730785706640,1.48392242,2430.2,2430.0,1.31564]
[1730785706832,1.48392242,2430.2,2430.0,0.9039]
[1730785707141,0.4629,2430.3,2430.1,0.41172]
[1730785708035,0.4629,2430.3,2430.0,0.9039]
[1730785708238,0.4629,2430.3,2430.1,0.41172]
[1730785708540,2.35851242,2430.3,2430.0,1.31564]
[1730785709632,1.94682242,2430.3,2430.0,0.9039]
[1730785709831,2.35852242,2430.3,2430.0,0.9039]
[1730785710032,2.35852242,2430.3,2430.0,1.31563]
[1730785710638,1.48392242,2430.2,2430.0,0.9039]
[1730785710939,0.41177,2429.9,2429.7,0.4118]
[1730785711637,0.85007,2429.9,2429.7,0.4118]
[1730785711830,0.4383,2429.9,2429.6,4.5278]
[1730785712032,0.096,2430.4,2430.3,0.41169]
[1730785712238,0.41162,2430.8,2430.3,4.69172242]
[1730785712434,0.41162,2430.8,2430.4,1.32]
[1730785712632,0.84992,2430.8,2430.4,1.32]
[1730785713040,0.4383,2430.8,2430.6,0.41164]
[1730785713239,41.2383,2430.8,2430.6,0.41163]
[1730785713639,41.2383,2430.8,2430.6,3.61943]
[1730785714145,41.2383,2430.8,2430.6,3.2078]
[1730785714440,4.72778859,2431.0,2430.6,3.2078]
[1730785714441,4.30408859,2431.0,2430.6,3.2078]
[1730785714649,4.30408859,2431.0,2430.8,0.41159]
[1730785714941,45.10408859,2431.0,2430.8,0.41159]
[1730785715143,45.10408859,2431.0,2430.6,3.2078]
[1730785715446,40.8,2431.0,2430.9,0.41159]
[1730785715841,40.8,2431.0,2430.6,3.2078]
[1730785716037,40.8,2431.0,2430.8,0.4116]
[1730785716338,40.8,2431.0,2430.9,0.41159]
[1730785716546,40.8,2431.0,2430.8,0.4116]
[1730785717241,40.8,2431.0,2430.9,0.41159]
[1730785717741,40.8,2431.0,2430.6,3.2078]
[1730785718443,40.8,2431.0,2430.8,0.4116]
[1730785719233,40.8,2431.0,2430.6,3.2078]
[1730785719435,40.8,2431.0,2430.9,0.41159]
[1730785719633,0.4616,2431.1,2431.0,0.41158]
[1730785720743,0.4616,2431.1,2431.0,0.83598]
[1730785721952,0.4359,2431.4,2431.2,0.41153]
[1730785722146,0.4359,2431.4,2431.3,0.41153]
[1730785722542,0.4359,2431.4,2431.2,0.41153]
[1730785723053,0.4359,2431.4,2431.3,0.41153]
[1730785723849,0.4359,2431.4,2431.2,3.2078]
[1730785723850,0.4359,2431.4,2431.2,3.61934]
[1730785724238,44.0078,2431.6,2431.2,3.2078]
[1730785724441,7.7048,2432.0,2431.9,0.41142]
[1730785724637,5.37778924,2432.1,2431.9,3.2078]
[1730785724843,5.37778924,2432.1,2432.0,0.41141]
[1730785725054,5.37778924,2432.1,2431.9,3.61921]
[1730785725251,5.37778924,2432.1,2431.9,3.2078]
[1730785725448,0.89121,2432.3,2432.0,0.41141]
[1730785726248,0.89121,2432.3,2432.0,0.4114]
[1730785727242,0.8912,2432.3,2432.0,0.4114]
[1730785727554,0.47984,2432.3,2432.1,0.41138]
[1730785727855,0.8912,2432.3,2432.0,0.4114]
[1730785728451,0.47984,2432.3,2431.9,3.2078]
[1730785728654,0.8912,2432.3,2432.0,0.4114]
[1730785728853,0.47984,2432.3,2431.9,3.2078]
[1730785729046,0.8912,2432.3,2432.0,0.4114]
[1730785729356,0.8912,2432.3,2431.9,3.61922]
[1730785729357,0.41138,2432.2,2431.9,3.61922]
[1730785729655,0.41138,2432.2,2432.0,0.41141]
[1730785729843,0.47984,2432.3,2431.9,3.2078]
[1730785730042,0.8912,2432.3,2432.0,0.41141]
[1730785730348,40.8,2432.2,2432.0,0.41141]
[1730785730746,40.8,2432.2,2432.1,0.41139]
[1730785730942,40.8,2432.2,2432.0,0.4114]
[1730785731552,0.4114,2432.1,2431.8,0.41143]
[1730785731753,0.41141,2432.0,2431.8,0.41143]
[1730785731948,1.33681,2432.0,2431.8,0.41143]
[1730785732158,1.33681,2432.0,2431.7,4.06075]
[1730785732348,0.41144,2431.9,2431.4,3.7409]
[1730785732654,0.4258,2431.8,2431.7,0.41146]
[1730785732851,0.4258,2431.8,2431.4,4.0828]
[1730785733045,0.83725,2431.8,2431.6,0.41147]
[1730785733442,0.83725,2431.8,2431.5,0.41148]
[1730785733650,0.4258,2431.8,2431.6,0.41147]
[1730785733845,0.83724,2431.8,2431.6,0.41147]
[1730785734051,0.83724,2431.8,2431.5,0.41149]
[1730785735151,0.41146,2431.7,2431.4,3.6193]
[1730785735352,0.41148,2431.6,2431.4,3.2078]
[1730785735548,0.4533,2431.5,2431.4,0.41151]
[1730785735747,0.4533,2431.5,2431.3,0.41152]
[1730785735948,40.8,2431.4,2431.3,0.41152]
[1730785736350,0.4533,2431.5,2431.3,0.41152]
[1730785736846,0.86479,2431.5,2431.3,0.41152]
[1730785737245,0.86479,2431.5,2431.2,0.41153]
[1730785737448,0.4533,2431.5,2431.3,0.41152]
[1730785738042,0.4533,2431.5,2431.3,3.61932]
[1730785738455,0.4533,2431.5,2431.3,3.2078]
[1730785738654,0.86479,2431.5,2431.3,3.2078]
[1730785739049,0.4533,2431.5,2431.3,3.61932]
[1730785739255,0.4258,2431.8,2431.7,0.41146]
[1730785739448,0.4531,2431.9,2431.8,0.41144]
[1730785740250,0.4531,2431.9,2431.7,0.4304]
[1730785740251,0.4531,2431.9,2431.7,0.84184]
[1730785740457,0.4531,2431.9,2431.8,0.41144]
[1730785741147,0.4531,2431.9,2431.7,0.84184]
[1730785741548,0.4531,2431.9,2431.8,0.41144]
[1730785741851,0.4531,2431.9,2431.7,0.84185]
[1730785742054,0.4531,2431.9,2431.8,0.41144]
[1730785744655,3.2078,2432.2,2431.8,4.5683]
[1730785744861,0.4359,2432.3,2432.1,0.41139]
[1730785745255,41.2359,2432.3,2432.1,0.41138]
[1730785746164,41.2359,2432.3,2431.9,3.6532]
[1730785746361,11.78673759,2432.7,2432.4,0.41133]
[1730785746362,8.98537161,2432.7,2432.4,0.41133]
[1730785746855,40.8,2432.6,2432.4,0.41133]
[1730785747255,40.8,2432.6,2432.3,0.8954]
[1730785747455,40.8,2432.6,2432.5,0.41132]
[1730785747659,40.8,2432.6,2432.4,0.41133]
[1730785747867,40.8,2432.6,2432.5,0.41132]
[1730785748060,40.8,2432.6,2432.3,0.8954]
[1730785748259,40.8,2432.6,2432.4,0.41133]
[1730785748669,40.8,2432.6,2432.5,0.41132]
[1730785748965,40.8,2432.6,2432.4,0.41133]
[1730785749566,3.61909,2432.7,2432.4,0.41133]
[1730785749963,3.2078,2432.7,2432.3,1.3526]
[1730785750175,44.0078,2432.7,2432.2,3.2078]
[1730785750667,0.41132,2432.6,2432.2,3.61917]
[1730785750863,0.41134,2432.5,2432.2,3.61917]
[1730785751269,0.4671,2432.4,2432.2,3.61917]
[1730785751670,0.4671,2432.4,2432.2,3.2078]
[1730785751864,0.4671,2432.4,2432.1,0.4588]
[1730785752066,0.4442,2432.3,2432.1,0.87019]
[1730785752267,0.4442,2432.3,2432.1,0.4588]
[1730785752460,0.4442,2432.3,2432.2,0.41137]
[1730785752666,0.4442,2432.3,2432.1,0.87018]
[1730785753063,0.85556,2432.3,2432.1,0.4588]
[1730785753470,0.85556,2432.3,2432.1,0.87019]
[1730785753966,0.4442,2432.3,2432.1,0.87019]
[1730785755264,0.4442,2432.3,2432.1,0.4588]
[1730785755459,0.85556,2432.3,2432.1,0.4588]
[1730785755666,0.85556,2432.3,2432.1,0.87019]
[1730785756262,4.5554,2432.3,2431.9,3.2078]
[1730785756468,0.41138,2432.2,2432.0,0.41141]
[1730785756869,0.41138,2432.2,2431.9,3.61921]
[1730785757067,0.41138,2432.2,2432.0,0.41141]
[1730785759575,0.8807,2432.3,2432.0,0.41141]
[1730785759777,0.41139,2432.1,2432.0,0.41141]
[1730785760275,0.41139,2432.2,2432.0,0.41141]
[1730785760764,0.41139,2432.2,2431.9,3.2078]
[1730785760966,0.41139,2432.2,2432.1,0.41139]
[1730785761576,0.41139,2432.2,2431.9,3.2078]
[1730785761577,0.41139,2432.2,2432.0,0.4114]
[1730785762173,0.41139,2432.2,2432.1,0.41139]
[1730785762589,1.29207,2432.3,2432.1,0.41139]
[1730785763266,1.29206,2432.3,2432.1,0.41139]
[1730785763477,1.29206,2432.3,2431.9,3.2078]
[1730785763874,1.29206,2432.3,2432.1,0.41138]
[1730785764075,0.8807,2432.3,2431.9,3.2078]
[1730785764379,1.29207,2432.3,2432.1,0.41139]
[1730785764878,0.41137,2432.2,2432.1,0.41139]
[1730785765481,1.29207,2432.3,2432.1,0.41139]
[1730785765685,0.8807,2432.3,2431.9,3.2078]
[1730785765976,0.41138,2432.2,2432.1,0.41138]
[1730785766382,1.29207,2432.3,2432.1,0.41138]
[1730785769175,0.8807,2432.3,2432.2,0.41137]
[1730785769681,0.8807,2432.3,2432.2,3.61917]
[1730785770177,0.4442,2432.3,2432.2,0.41137]
[1730785770384,0.4671,2432.4,2432.3,0.41136]
[1730785771878,0.4671,2432.4,2432.2,1.32526]
[1730785772079,0.87845,2432.4,2432.2,1.32526]
[1730785772276,0.4671,2432.4,2432.3,0.41136]
[1730785772588,0.4671,2432.4,2432.2,1.32526]
[1730785772881,0.4671,2432.4,2432.2,0.9139]
[1730785773082,0.4671,2432.4,2432.3,0.41136]
[1730785773485,0.4671,2432.4,2432.2,1.32526]
[1730785773486,0.87845,2432.4,2432.2,1.32526]
[1730785773682,0.4671,2432.4,2432.2,1.32526]
[1730785773985,0.87844,2432.4,2432.2,1.32526]
[1730785774188,0.4671,2432.4,2432.2,1.32526]
[1730785774578,0.87845,2432.4,2431.9,3.2078]
[1730785774779,0.87845,2432.4,2432.1,0.41138]
[1730785774980,0.41136,2432.3,2432.0,0.4694]
[1730785775182,0.4369,2432.2,2432.1,0.41139]
[1730785776179,0.4671,2432.4,2432.3,0.41136]
[1730785776491,0.41136,2432.3,2432.1,0.41139]
[1730785776682,0.41137,2432.3,2432.0,0.8808]
[1730785776883,0.4671,2432.4,2432.0,0.8808]
[1730785777083,0.4671,2432.4,2432.0,0.4694]
[1730785777282,0.41137,2432.3,2432.0,0.8808]
[1730785777486,0.41138,2432.2,2432.0,0.8808]
[1730785777787,0.4671,2432.4,2432.0,0.8808]
[1730785777788,0.41137,2432.3,2432.0,0.8808]
[1730785777983,0.4671,2432.4,2432.0,0.4694]
[1730785778190,0.4671,2432.4,2432.0,0.8808]
[1730785778481,0.41138,2432.2,2432.0,0.8808]
[1730785778686,0.4671,2432.4,2432.0,0.8808]
[1730785778885,1.02853,2432.0,2431.4,1.60956814]
[1730785779081,4.68983396,2431.5,2431.4,0.19956814]
[1730785779281,44.41929,2431.5,2431.4,0.19956814]
[1730785779481,45.36829,2431.5,2431.4,0.19956814]
[1730785779684,45.36829,2431.5,2431.2,2.14609086]
[1730785779879,0.4539,2431.4,2431.2,2.14609086]
[1730785780182,0.41153,2431.3,2431.2,2.14609086]
[1730785780989,1.89356396,2431.3,2431.2,2.14609086]
[1730785781394,0.41153,2431.3,2431.2,2.14609086]
[1730785782293,0.85163,2431.3,2431.2,2.14609086]
[1730785782889,0.85163,2431.3,2430.9,1.77739]
[1730785783092,0.41155,2431.2,2430.9,1.3658]
[1730785783794,0.41155,2431.2,2431.0,3.2078]
[1730785784479,0.41158,2431.0,2430.7,3.2078]
[1730785784685,3.21233704,2431.2,2430.6,3.2078]
[1730785784880,0.41162,2430.8,2430.6,3.2078]
[1730785785392,0.85241,2430.9,2430.6,3.2078]
[1730785785592,0.4408,2430.9,2430.6,3.2078]
[1730785785792,0.8524,2430.9,2430.6,3.2078]
[1730785786392,0.41163,2430.8,2430.6,3.2078]
[1730785787196,0.85241,2430.9,2430.6,3.2078]
[1730785787393,0.8524,2430.9,2430.6,3.61944]
[1730785787588,0.41161,2430.8,2430.6,3.2078]
[1730785787789,0.4408,2430.9,2430.6,3.61944]
[1730785787989,0.41162,2430.8,2430.6,3.61944]
[1730785788997,0.41162,2430.8,2430.6,3.2078]
[1730785789198,0.41162,2430.8,2430.6,3.61945]
[1730785789397,0.41163,2430.7,2430.6,3.2078]
[1730785794700,0.41165,2430.6,2430.5,0.9274]
[1730785795308,4.0847,2430.9,2430.5,0.9274]
[1730785795605,0.41165,2430.6,2430.5,0.9274]
[1730785799703,4.0847,2430.9,2430.5,0.9274]
[1730785799903,0.41164,2430.7,2430.6,0.4285]
[1730785800208,0.41162,2430.8,2430.6,0.84014]
[1730785800509,0.41162,2430.8,2430.6,0.4285]
[1730785801003,0.8769,2430.9,2430.6,0.4285]
[1730785801206,0.41161,2430.9,2430.6,0.84014]
[1730785801407,0.41161,2430.8,2430.6,0.4285]
[1730785802006,0.41163,2430.7,2430.6,0.4285]
[1730785802407,0.41162,2430.8,2430.6,0.4285]
[1730785802705,0.41162,2430.8,2430.6,0.84015]
[1730785802907,0.41161,2430.9,2430.6,0.84014]
[1730785803603,0.5625,2431.2,2430.7,4.1136]
[1730785803810,0.41157,2431.1,2430.9,0.41159]
[1730785804004,0.87806,2431.2,2431.0,0.8869]
[1730785804305,0.4665,2431.2,2431.1,0.41156]
[1730785804610,0.87805,2431.2,2431.0,0.8869]
[1730785805104,0.87805,2431.2,2431.0,1.29848]
[1730785805304,0.87805,2431.2,2431.0,0.8869]
[1730785806912,0.4665,2431.2,2431.0,0.8869]
[1730785807112,0.41153,2431.3,2431.1,0.87346]
[1730785807420,4.09873704,2431.4,2431.2,0.41154]
[1730785807913,4.09873704,2431.4,2431.1,0.4619]
[1730785808214,4.51025704,2431.4,2431.2,0.41154]
[1730785808610,4.51025704,2431.4,2431.1,0.4619]
[1730785808914,41.768,2431.5,2431.1,0.4619]
[1730785809103,41.768,2431.5,2431.3,0.41152]
[1730785809300,41.768,2431.5,2431.4,0.41151]
[1730785809301,40.8,2431.5,2431.4,0.41151]
[1730785810518,1.30737,2431.7,2431.4,0.41151]
[1730785810706,6.83157704,2431.9,2431.6,0.41148]
[1730785810909,40.8,2431.8,2431.6,0.41147]
[1730785811109,41.21145,2431.8,2431.6,0.4323]
[1730785811312,40.8,2431.8,2431.6,0.84378]
[1730785812718,40.8,2431.8,2431.7,0.41146]
[1730785813606,0.096,2432.1,2432.0,0.41141]
[1730785813805,0.41139,2432.2,2431.8,0.85273]
[1730785814112,0.4114,2432.1,2431.8,0.85274]
[1730785814309,0.41139,2432.2,2431.8,0.85273]
[1730785814709,0.41139,2432.2,2431.9,0.41141]
[1730785814909,0.41139,2432.2,2432.0,0.4334]
[1730785816216,41.7224,2432.3,2432.0,0.4334]
[1730785816621,0.41139,2432.2,2432.0,0.4334]
[1730785819111,41.7224,2432.3,2432.0,0.4334]
[1730785819316,41.7224,2432.3,2432.1,0.41138]
[1730785819517,42.13376,2432.3,2432.1,0.4517]
[1730785821122,42.13376,2432.3,2432.0,0.4334]
[1730785821312,42.13376,2432.3,2432.0,0.84481]
[1730785821722,0.41138,2432.2,2432.0,0.4334]
[1730785822218,42.13377,2432.3,2432.0,0.84481]
[1730785822618,42.13377,2432.3,2432.0,0.4334]
[1730785823020,0.41138,2432.2,2432.0,0.4334]
[1730785823218,41.7224,2432.3,2432.0,0.4334]
[1730785823620,42.13376,2432.3,2432.0,0.8448]
[1730785824520,6.42013704,2432.4,2432.2,0.41137]
[1730785825026,47.22013704,2432.4,2432.3,0.448]
[1730785825628,40.8,2432.4,2432.3,0.85936]
[1730785826319,40.8,2432.4,2432.3,0.448]
[1730785826721,40.8,2432.4,2432.3,0.85936]
[1730785827729,40.8,2432.4,2432.3,1.29496]
[1730785828228,0.8896,2432.5,2432.3,0.8836]
[1730785828430,0.8896,2432.5,2432.4,0.88084]
[1730785828933,0.4463,2432.5,2432.4,0.88084]
[1730785830324,0.4463,2432.5,2432.4,0.4695]
[1730785830833,0.4463,2432.5,2432.4,0.88084]
[1730785831228,0.4463,2432.5,2432.4,0.4695]
[1730785831429,0.4463,2432.5,2432.4,0.88084]
[1730785835335,1.9281994,2432.5,2432.4,0.88084]
[1730785841836,1.9281994,2432.5,2432.2,3.2078]
[1730785842138,1.4818994,2432.4,2432.1,0.88]
[1730785842334,1.4818994,2432.4,2432.3,0.41136]
[1730785842835,1.4818994,2432.4,2432.2,0.41136]
[1730785842836,1.8932394,2432.4,2432.2,0.41136]
[1730785843538,0.41136,2432.3,2432.1,1.29138]
[1730785844039,0.87036,2432.3,2432.1,1.29138]
[1730785844244,0.459,2432.3,2432.1,0.88]
[1730785844441,0.87036,2432.3,2432.1,0.88]
[1730785844634,0.87036,2432.3,2432.1,1.29139]
[1730785845030,0.459,2432.3,2432.1,1.29139]
[1730785845339,0.87036,2432.3,2432.1,1.29139]
[1730785845535,0.459,2432.3,2432.1,1.29139]
[1730785846440,0.459,2432.3,2432.2,0.41138]
[1730785846648,0.87036,2432.3,2432.1,1.29139]
[1730785846941,0.459,2432.3,2432.1,1.29139]
[1730785847741,0.459,2432.3,2432.2,0.41138]
[1730785848340,5.1359994,2432.5,2432.1,0.88]